fUSD/lending_fUSD_20240327
["ID","MTS","AMOUNT","RATE_DAILY","PERIOD"]
[320705679,1711521075406,-3001.59,0.0005589,120]
[320705680,1711521075416,-500.0,0.0005589,120]
[320705681,1711521075425,-23036.16,0.0005589,120]
[320705682,1711521075436,-500.0,0.0005589,120]
[320705683,1711521075446,-876.17,0.0005589,120]
[320705684,1711521075456,-500.0,0.0005589,55]
[320705685,1711521075467,-2290.97,0.0005589,120]
[320705686,1711521075478,-24665.86,0.0005589,120]
[320705687,1711521075489,-500.0,0.0005589,120]
[320705688,1711521075504,-500.0,0.0005589,120]
[320705689,1711521075516,-6584.66,0.0005589,21]
[320705690,1711521075527,-1248.4,0.0005589,120]
[320705691,1711521075538,-227.870007,0.0005589,120]
[320705692,1711521075549,-2878.49,0.0005589,120]
[320705693,1711521075560,-909.95,0.0005589,120]
[320705694,1711521075570,-291.96412535,0.0005589,120]
[320705695,1711521075582,-227.870007,0.0005589,120]
[320705696,1711521075594,-1626.72,0.0005589,120]
[320705697,1711521075606,-1001.06,0.0005589,120]
[320705698,1711521075617,-613.04,0.0005589,120]
[320705699,1711521075629,-1024.11,0.0005589,120]
[320705700,1711521075641,-1141.61,0.0005589,120]
[320705701,1711521075653,-2824.98,0.0005589,120]
[320705702,1711521075665,-886.17,0.0005589,120]
[320705703,1711521075676,-255.031446,0.0005589,120]
[320705704,1711521075689,-255.031446,0.0005589,120]
[320705705,1711521075701,-3067.74,0.0005589,120]
[320705706,1711521075713,-500.0,0.0005589,120]
[320705707,1711521075725,-678.71,0.0005589,120]
[320705708,1711521075737,-1413.85,0.0005589,120]
[320705709,1711521075756,-1116.0,0.0005589,120]
[320705710,1711521075768,-1774.49,0.0005589,120]
[320705711,1711521075780,-10425.44,0.0005589,120]
[320705712,1711521075793,-500.0,0.0005589,120]
[320705713,1711521075806,-500.0,0.0005589,120]
[320705714,1711521075820,-7515.91,0.0005589,120]
[320705715,1711521075832,-500.0,0.0005589,120]
[320705716,1711521075844,-693.92,0.0005589,120]
[320705717,1711521075856,-1165.92,0.0005589,120]
[320705718,1711521075867,-500.0,0.0005589,120]
[320705719,1711521075878,-500.0,0.0005589,120]
[320705720,1711521075892,-12826.76,0.0005589,120]
[320705721,1711521075904,-626.22729543,0.0005589,120]
[320705722,1711521077191,-1056.485,0.00041786,2]
[320705723,1711521077208,-1225.525,0.00041786,2]
[320705724,1711521077220,-2282.01,0.00044526,2]
[320705725,1711521077233,-159.33622806,0.000509,120]
[320705726,1711521077248,-541.285,0.00050947,120]
[320705727,1711521077260,-151.0,0.00053287,120]
[320705728,1711521077277,-3262.884675,0.00053287,120]
[320705729,1711521077291,-354.78669265,0.00054794,120]
[320705730,1711521077348,-145.21330735,0.00054794,120]
[320705731,1711521077361,-151.0,0.00054794,120]
[320705732,1711521077373,-151.0,0.00054794,120]
[320705733,1711521077386,-3262.884675,0.00054794,120]
[320705734,1711521077398,-3262.884675,0.00054794,120]
[320705735,1711521077410,-500.0,0.00054795,120]
[320705736,1711521077423,-500.0,0.00054795,120]
[320705737,1711521077434,-500.0,0.00054795,120]
[320705738,1711521077446,-500.0,0.00054795,120]
[320705739,1711521077458,-151.0,0.00055,120]
[320705740,1711521077470,-500.0,0.00055342,120]
[320705741,1711521077483,-151.0,0.00055342,120]
[320705742,1711521077494,-151.0,0.000555,120]
[320705743,1711521077506,-116.24270457,0.0005589,120]
[320705744,1711521077518,-6519.32,0.0005589,120]
[320705745,1711521077533,-193.286613,0.0005589,30]
[320705746,1711521077546,-500.0,0.0005589,120]
[320705747,1711521077557,-749.07,0.0005589,120]
[320705748,1711521077569,-1248.06,0.0005589,120]
[320705749,1711521077582,-555.67,0.0005589,120]
[320705750,1711521077593,-193.286613,0.0005589,30]
[320705751,1711521077605,-1051.03,0.0005589,120]
[320705752,1711521077617,-353.94220356,0.0005589,120]
[320705753,1711521077628,-950.92,0.0005589,120]
[320705754,1711521077641,-2315.85,0.0005589,120]
[320705755,1711521077652,-500.0,0.0005589,120]
[320705756,1711521077664,-151.0,0.0005589,120]
[320705757,1711521077677,-8992.19,0.0005589,120]
[320705758,1711521077689,-999.07,0.0005589,120]
[320705759,1711521077700,-783.7,0.0005589,120]
[320705760,1711521077712,-500.0,0.0005589,120]
[320705761,1711521077724,-1594.18,0.0005589,120]
[320705762,1711521077735,-1904.62,0.0005589,120]
[320705763,1711521077748,-949.607586,0.0005589,120]
[320705764,1711521077760,-500.0,0.0005589,120]
[320705765,1711521077771,-500.0,0.0005589,120]
[320705766,1711521077783,-949.607586,0.0005589,120]
[320705767,1711521077796,-500.0,0.0005589,120]
[320705768,1711521077811,-154.91635219,0.00055916,120]
[320705769,1711521077823,-603.075319,0.00055932,120]
[320705770,1711521077836,-603.075319,0.00055932,120]
[320705771,1711521077851,-1392.245663,0.00055932,120]
[320705772,1711521077863,-1392.245663,0.00055932,120]
[320705773,1711521077873,-150.5,0.0005597,15]
[320705774,1711521077885,-150.5,0.0005598,15]
[320705775,1711521077899,-150.5,0.0005599,15]
[320705776,1711521077912,-1000.0,0.00056,120]
[320705777,1711521077925,-360.8792784,0.00056,58]
[320705778,1711521077939,-250.0,0.00056,120]
[320705779,1711521077950,-150.0,0.00056,30]
[320705780,1711521077962,-227.870007,0.00056,120]
[320705781,1711521077974,-227.870007,0.00056,120]
[320705782,1711521077985,-255.031446,0.00056,120]
[320705783,1711521077997,-255.031446,0.00056,120]
[320705784,1711521078008,-5398.95752529,0.00056,120]
[320705785,1711521078019,-228.42048606,0.00056027,92]
[320705786,1711521078031,-156.33718315,0.0005608,120]
[320705787,1711521078045,-293.64,0.000561,30]
[320705788,1711521078057,-1524.26779643,0.00056164,120]
[320705789,1711521078084,-2868.20677174,0.00055,120]
[320705790,1711521079351,-2115.94,0.00048347,30]
[320705791,1711521079377,-7884.06,0.00048347,30]
[320705792,1711521079386,-10000.0,0.00049387,30]
[320705793,1711521079395,-325.32,0.00050102,120]
[320705794,1711521079405,-292.014818,0.00053287,120]
[320705795,1711521079414,-3262.884675,0.00053287,120]
[320705796,1711521079423,-496.40694693,0.00054794,120]
[320705797,1711521079436,-3262.884675,0.00054794,120]
[320705798,1711521079445,-500.0,0.00054794,120]
[320705799,1711521079455,-3262.884675,0.00054794,120]
[320705800,1711521079464,-500.0,0.00054795,120]
[320705801,1711521079474,-500.0,0.00054795,120]
[320705802,1711521079483,-500.0,0.00054795,120]
[320705803,1711521079496,-138.17819007,0.00054795,120]
[320705804,1711521079508,-280.56929338,0.00054795,120]
[320705805,1711521080090,-179.42345923,0.00039045,4]
[320705806,1711521080100,-250.0,0.00047255,120]
[320705807,1711521080110,-159.3362279,0.000509,120]
[320705808,1711521080120,-283.81675448,0.00054794,120]
[320705809,1711521080132,-216.18324552,0.00054794,120]
[320705810,1711521080141,-500.0,0.00054794,120]
[320705811,1711521080151,-81.25251655,0.00054795,120]
[320705812,1711521080160,-500.0,0.00054795,120]
[320705813,1711521080169,-500.0,0.00054795,120]
[320705814,1711521080179,-394.67790326,0.00055,120]
[320705815,1711521080189,-3262.884675,0.00055,120]
[320705816,1711521080199,-3262.884675,0.00055342,120]
[320705817,1711521080209,-444.39,0.00055342,120]
[320705818,1711521080218,-3262.884675,0.00055342,120]
[320705819,1711521080228,-387.75,0.00055342,120]
[320705820,1711521080238,-3262.884675,0.000555,120]
[320705821,1711521080250,-3262.884675,0.000555,120]
[320705822,1711521080260,-151.0,0.0005589,120]
[320705823,1711521080269,-3262.884675,0.0005589,120]
[320705824,1711521080278,-3262.884675,0.0005589,120]
[320705825,1711521080288,-583.22886594,0.00056064,55]
[320705826,1711521080297,-49.91220357,0.00056164,120]
[320705827,1711521080307,-151.032713,0.00056198,112]
[320705828,1711521080316,-306.48,0.000562,30]
[320705829,1711521080326,-185.77,0.0005637,120]
[320705830,1711521080336,-157.477533,0.00056399,7]
[320705831,1711521080345,-157.477533,0.00056399,7]
[320705832,1711521080364,-207.543318,0.00056399,120]
[320705833,1711521080377,-207.543318,0.00056399,120]
[320705834,1711521080387,-151.0,0.00056399,120]
[320705835,1711521080397,-6189.3095098,0.00056399,2]
[320705836,1711521080408,-13680.67330377,0.00056399,2]
[320705837,1711521080423,-25681.40286003,0.00056399,2]
[320705838,1711521080435,-1745.629678,0.00056399,2]
[320705839,1711521080477,-238.93967837,0.00039045,4]
[320705840,1711521080487,-2569.06032163,0.00056399,2]
[320705922,1711522029477,-150.0,0.00034548,10]
[320705923,1711522029499,-783.58218169,0.00037854,4]
[320705924,1711522044093,-876.32555698,0.00037854,4]
[320705925,1711522044117,-415.6487012,0.00037855,4]
[320705928,1711522165146,-347.43965606,0.00037855,4]
[320705929,1711522165169,-157.64109763,0.00037856,4]
[320705938,1711522232589,-80.63858897,0.00037854,2]
[320705939,1711522232601,-419.36141103,0.00037854,2]
[320705940,1711522232610,-66.18923937,0.00037855,2]
[320705953,1711522238411,-715.81076063,0.00037855,2]
[320705954,1711522238421,-780.32935963,0.00037856,4]
[320705955,1711522238430,-177.642045,0.000382,120]
[320705956,1711522238439,-555.0,0.00038602,2]
[320705957,1711522238449,-164.86431305,0.00045799,2]
[320705958,1711522238459,-1034.87169216,0.00045899,4]
[320705959,1711522238470,-464.48,0.00046247,2]
[320705960,1711522238480,-4174.23,0.00046822,18]
[320705961,1711522238490,-150.0,0.00046822,2]
[320705962,1711522238500,-156.33718315,0.00047844,30]
[320705963,1711522238510,-1644.24,0.00048042,2]
[320705964,1711522238519,-152.43888631,0.00048096,30]
[320705965,1711522238529,-200.0,0.00048122,2]
[320705966,1711522238540,-150.0,0.00048141,5]
[320705967,1711522238551,-2231.1,0.00048142,120]
[320705968,1711522238560,-250.0,0.00048144,120]
[320705969,1711522238569,-23890.0,0.00048147,2]
[320705970,1711522238580,-2000.0,0.00048147,120]
[320705971,1711522238591,-165.33,0.00048218,15]
[320705972,1711522238600,-250.0,0.00048241,120]
[320705973,1711522238621,-154.99,0.00048313,2]
[320705974,1711522238644,-183.0,0.00048404,2]
[320705975,1711522238671,-250.0,0.00048423,110]
[320705976,1711522238699,-464.48,0.00048511,2]
[320705977,1711522238724,-500.0,0.00048556,2]
[320705978,1711522238747,-200.0,0.00048567,2]
[320705980,1711522238776,-158.91989118,0.00048668,30]
[320705982,1711522238799,-152.88,0.0004868,2]
[320705983,1711522238809,-3634.26,0.00048684,2]
[320705984,1711522238818,-155.15974479,0.00048697,30]
[320705985,1711522238828,-1000.0,0.00048722,2]
[320705986,1711522238837,-152.88,0.00048849,2]
[320705987,1711522238847,-1662.19,0.00048974,120]
[320705988,1711522238857,-517.32,0.00049,7]
[320705989,1711522238866,-152.88,0.00049018,2]
[320705990,1711522238875,-1020.0,0.0004904,117]
[320705991,1711522238884,-152.88,0.00049187,2]
[320705992,1711522238893,-158.94982111,0.00049228,30]
[320705993,1711522238904,-630.29814932,0.00049325,8]
[320705994,1711522238913,-152.88,0.00049356,2]
[320705995,1711522238922,-7178.2437792,0.00049425,30]
[320705996,1711522238933,-152.88,0.00049525,2]
[320705997,1711522238941,-154.87010756,0.00049655,30]
[320705998,1711522238951,-190.6268655,0.0004968,120]
[320705999,1711522238962,-152.88,0.00049694,2]
[320706000,1711522238971,-152.88,0.00049863,2]
[320706001,1711522238979,-257.18,0.0004996,2]
[320706002,1711522238988,-303.55,0.00049976,120]
[320706003,1711522238997,-233.91285551,0.00050032,30]
[320706004,1711522239006,-152.88,0.00050033,2]
[320706005,1711522239015,-164.86431305,0.00050196,2]
[320706006,1711522239024,-152.88,0.00050202,2]
[320706007,1711522239036,-630.29814931,0.0005023,8]
[320706008,1711522239243,-432.078,0.0005023,2]
[320706009,1711522239255,-1073.74042701,0.00050231,2]
[320706010,1711522239264,-2498.46558743,0.00050231,2]
[320706011,1711522239273,-157.63,0.0005032,30]
[320706012,1711522239284,-788.16,0.0005032,30]
[320706013,1711522239293,-929.26992607,0.00050329,4]
[320706014,1711522239302,-4621.1365658,0.0005033,2]
[320706015,1711522239318,-3047.52439121,0.0005033,2]
[320706016,1711522239347,-1035.49999985,0.0005033,2]
[320706017,1711522239358,-283.96133117,0.0005033,2]
[320706018,1711522239393,-1386.88694425,0.0005033,2]
[320706046,1711522240421,-2532.9872,0.0005033,2]
[320706047,1711522240661,-406.24944498,0.0005033,2]
[320706059,1711522243405,-420.47794452,0.0005033,2]
[320706060,1711522243417,-199744.09160884,0.0005033,2]
[320706061,1711522243528,-1463.52083726,0.0005033,2]
[320706062,1711522243538,-152.88,0.00050371,2]
[320706063,1711522243548,-152.88,0.0005054,2]
[320706064,1711522243557,-152.88,0.00050709,2]
[320706065,1711522243566,-464.48,0.00050775,2]
[320706066,1711522243576,-152.88,0.00050878,2]
[320706067,1711522243585,-150.95011068,0.000509,120]
[320706068,1711522243595,-150.95011064,0.000509,120]
[320706069,1711522243605,-150.95011064,0.000509,120]
[320706070,1711522243615,-14.96607806,0.00050985,60]
[320706071,1711522243632,-139.2161409,0.00050985,60]
[320706072,1711522243641,-173.61,0.00051013,2]
[320706073,1711522243651,-152.88,0.00051047,2]
[320706074,1711522243660,-150.95011064,0.00051066,120]
[320706075,1711522243670,-152.88,0.00051216,2]
[320706076,1711522243680,-150.95011064,0.00051345,120]
[320706077,1711522243689,-154.94711387,0.00051355,60]
[320706078,1711522243698,-1073.74042693,0.00051397,2]
[320706079,1711522243708,-2498.46558736,0.00051397,2]
[320706080,1711522243717,-150.95011064,0.00051623,120]
[320706081,1711522243726,-158.00073607,0.00051668,60]
[320706082,1711522243735,-154.87010756,0.00051789,60]
[320706083,1711522243745,-150.95011064,0.00051901,120]
[320706084,1711522243754,-150.95011064,0.0005218,120]
[320706085,1711522243763,-150.95011064,0.00052458,120]
[320706086,1711522243772,-152.0220485,0.00052561,60]
[320706087,1711522243781,-580.21729795,0.00052562,2]
[320706088,1711522243815,-493.52312898,0.00052562,2]
[320706089,1711522243824,-2498.46558736,0.00052562,2]
[320706090,1711522243833,-150.95011064,0.00052737,120]
[320706091,1711522243842,-150.95011064,0.00053015,120]
[320706092,1711522243852,-464.48,0.00053038,2]
[320706093,1711522243861,-3267.26719125,0.00053128,4]
[320706095,1711522243873,-1587.20315656,0.00053128,4]
[320706105,1711522246670,-894.4879732,0.00053127,2]
[320706106,1711522246679,-77.4720268,0.00053128,4]
[320706107,1711522246696,-790.96155859,0.00053128,4]
[320706108,1711522246705,-150.95011064,0.00053293,120]
[320706109,1711522246714,-150.95011064,0.00053572,120]
[320706110,1711522246725,-158.91989118,0.0005369,60]
[320706111,1711522246735,-1073.74042693,0.00053728,2]
[320706112,1711522246744,-2498.46558736,0.00053728,2]
[320706113,1711522246754,-157.032715,0.00053798,101]
[320706114,1711522246763,-150.95011064,0.0005385,120]
[320706115,1711522246772,-156.63077706,0.00053997,2]
[320706116,1711522246782,-3142.97634154,0.00054,2]
[320706117,1711522246792,-17287.31208664,0.00054,4]
[320706118,1711522246844,-776.44418293,0.00054,4]
[320706120,1711522270091,64806.0,0.00018,2]
[320706121,1711522270114,3068.0,0.00018,2]
[320706122,1711522270134,16562.0,0.00018,2]
[320706123,1711522270159,633855.3232437,0.00018,2]
[320706128,1711522470680,1363.60384234,0.00018,2]
[320706130,1711522486119,6698.43855006,0.00018,2]
[320706131,1711522486653,748.04491962,0.00018,2]
[320706132,1711522492989,365.83716599,0.00018,2]
[320706133,1711522499378,406.48055709,0.0001746,2]
[320706134,1711522500123,286.94301134,0.00018,2]
[320706135,1711522500745,318.33273827,0.00018,2]
[320706136,1711522505139,863.80655971,0.00018,2]
[320706137,1711522505723,296.1131679,0.00018,2]
[320706138,1711522509016,155.26162148,0.00018,2]
[320706139,1711522514711,250.79423745,0.0001746,2]
[320706140,1711522516042,286.87319615,0.0001746,2]
[320706141,1711522517860,948.9259237,0.00016587,2]
[320706142,1711522523357,407.26774146,0.00016936,2]
[320706143,1711522524931,292.17207754,0.0001746,2]
[320706144,1711522525388,863.89362201,0.0001746,2]
[320706145,1711522525424,8388.34861499,0.0001746,2]
[320706147,1711523237168,-536.14484072,0.00029871,2]
[320706148,1711523237189,-763.08835726,0.00029872,2]
[320706149,1711523237209,-155.0,0.00029873,2]
[320706150,1711523237228,-281.02233617,0.00029874,2]
[320706151,1711523239210,-125.75634219,0.00029874,2]
[320706152,1711523239230,-2575.92844936,0.00029874,2]
[320706162,1711523431637,-542.35363009,0.00029729,2]
[320706163,1711523431649,-333.00794755,0.00029729,2]
[320706164,1711523431669,-36.71780836,0.00029729,2]
[320706165,1711523431679,-215.0,0.00029879,2]
[320706166,1711523431688,-557.94764104,0.00029893,2]
[320706167,1711523431725,-2388.52106257,0.00029893,2]
[320706168,1711523431736,-201.87119284,0.00029893,2]
[320706169,1711523431746,-2756.88891822,0.00029894,2]
[320706170,1711523431756,-935.2073927,0.0003,5]
[320706171,1711523431766,-193.5,0.00034789,2]
[320706172,1711523431776,-370.41068176,0.00037754,4]
[320706173,1711523431786,-499.99,0.00037754,2]
[320706174,1711523431796,-5220.26262135,0.00037755,4]
[320706175,1711523431806,-4634.62780109,0.00037855,4]
[320706176,1711523431815,-288.74988706,0.00037856,4]
[320706177,1711523431825,-157.76562942,0.00038,30]
[320706178,1711523431835,-8933.84048589,0.00038556,2]
[320706179,1711523431844,-2000.88997968,0.0004,2]
[320706180,1711523431854,-7414.34376761,0.0004,4]
[320706181,1711523431864,-434.15,0.00041284,2]
[320706182,1711523431878,-22989.43,0.00042969,2]
[320706183,1711523431888,-250.0,0.00043068,2]
[320706184,1711523431898,-242.84,0.00043367,120]
[320706185,1711523431907,-200.0,0.00043423,2]
[320706186,1711523431918,-434.15,0.00043548,2]
[320706187,1711523431927,-1859.25,0.00043629,2]
[320706188,1711523431937,-193.94,0.00043631,2]
[320706189,1711523431946,-250.0,0.00043662,110]
[320706190,1711523431955,-2000.0,0.00043725,120]
[320706191,1711523431964,-1850.68,0.00043826,2]
[320706192,1711523431973,-165.33,0.00043933,15]
[320706193,1711523431983,-49999.999999,0.00044,7]
[320706194,1711523431993,-250.0,0.00045404,120]
[320706195,1711523432002,-800.0,0.0004555,2]
[320706196,1711523432011,-434.15,0.00045812,2]
[320706197,1711523432021,-1385.15,0.00046118,120]
[320706198,1711523432030,-193.94,0.0004637,2]
[320706199,1711523432040,-156.33718316,0.00046625,30]
[320706200,1711523432049,-1562.93,0.00047039,2]
[320706201,1711523432059,-434.15,0.00048076,2]
[320706202,1711523432069,-151.032715,0.00048498,95]
[320706203,1711523432079,-24.46839305,0.0004868,2]
[320706204,1711523432097,-975.53160695,0.0004868,2]
[320706205,1711523432107,-644.24425623,0.0004868,2]
[320706206,1711523432117,-2500.0,0.0004868,2]
[320706207,1711523432130,-14526.1305,0.0004868,2]
[320706208,1711523432139,-1143.71882808,0.000487,13]
[320706209,1711523432148,-1020.0,0.000487,117]
[320706210,1711523432157,-806.18760338,0.00048778,4]
[320706211,1711523432166,-775.67608756,0.00048778,4]
[320706212,1711523432176,-310.0,0.00048778,4]
[320706213,1711523432185,-405.74051498,0.00048778,2]
[320706214,1711523432195,-3334.0,0.00048779,60]
[320706215,1711523432205,-21189.69856962,0.0004878,2]
[320706216,1711523432217,-2010.11054597,0.0004878,2]
[320706217,1711523432240,-3494.75123709,0.0004878,2]
[320706218,1711523432252,-1447.73620565,0.0004878,2]
[320706219,1711523432263,-903.55095595,0.0004878,2]
[320706220,1711523432274,-19603.18266682,0.0004878,2]
[320706221,1711523432285,-66043.7707189,0.0004878,2]
[320706222,1711523432295,-5000.0,0.0004878,3]
[320706223,1711523432305,-242.84,0.00048788,120]
[320706224,1711523432314,-151.032715,0.00048798,96]
[320706225,1711523432324,-78639.90702765,0.000488,2]
[320706226,1711523432333,-186.33072962,0.000488,25]
[320706227,1711523432343,-185.14452528,0.000488,25]
[320706228,1711523432353,-288.67713712,0.000488,2]
[320706229,1711523432362,-8323.33217458,0.000488,25]
[320706230,1711523432373,-456.72445358,0.000488,2]
[320706231,1711523432383,-233.2915464,0.000488,44]
[320706232,1711523432393,-497.79679606,0.000488,2]
[320706233,1711523432402,-150.5,0.0004885,15]
[320706234,1711523432411,-200.0,0.00048851,2]
[320706235,1711523432420,-800.0,0.00048853,25]
[320706236,1711523432430,-150.5,0.0004886,15]
[320706237,1711523432439,-150.5,0.0004887,15]
[320706238,1711523432449,-162.78877684,0.0004887,2]
[320706239,1711523432459,-313.26155412,0.00048877,2]
[320706240,1711523432469,-150.0,0.00048879,7]
[320706241,1711523432479,-13997.91701485,0.0004888,2]
[320706242,1711523432492,-210493.06341766,0.0004888,2]
[320706243,1711523437597,-153.55361087,0.000488,40]
[320706244,1711523437607,-160105.15824717,0.0004888,2]
[320706245,1711523437817,-40146.83103795,0.0004888,2]
[320706246,1711523437828,-31639.81327983,0.0004888,2]
[320706247,1711523437840,-1010.95908137,0.0004888,2]
[320706248,1711523437852,-135496.96016757,0.0004888,2]
[320706249,1711523437885,-0.00232254,0.0004888,2]
[320706250,1711523437900,-3687.6222956,0.0004888,2]
[320706258,1711523439677,-360.93999999,0.0004878,3]
[320706259,1711523439712,-4639.06000001,0.0004878,3]
[320706260,1711523439722,-29393.89738208,0.0004888,2]
[320706261,1711523439741,-197723.87846046,0.0004888,2]
[320706270,1711523442701,-963.93347903,0.0004888,2]
[320706277,1711523445589,-440.74979347,0.00048879,4]
[320706278,1711523445754,-894.53436832,0.00048879,4]
[320706279,1711523445764,-50425.16293675,0.0004888,2]
[320706280,1711523445812,-2901.63558734,0.0004888,2]
[320706283,1711523536274,1585.96843501,0.00017701,2]
[320706284,1711523537275,1585.96843499,0.00018427,2]
[320706285,1711523561775,738.73771562,0.0001382,2]
[320706286,1711523568774,808.94881944,0.00018427,2]
[320706287,1711523660783,1363.92466986,0.00018427,2]
[320706288,1711523662828,959.12943263,0.00017701,2]
[320706289,1711523696792,1767.75742453,0.00018427,2]
[320706290,1711523712797,1363.60384234,0.00018427,2]
[320706291,1711523730798,1363.60384234,0.00018427,2]
[320706292,1711523748851,1363.60384234,0.00018427,2]
[320706293,1711523796855,1363.92466986,0.00018427,2]
[320706294,1711523814876,615.2380952,0.00018427,2]
[320706295,1711523836856,1363.92466986,0.00018427,2]
[320706296,1711523852870,490.45161693,0.00018427,2]
[320706298,1711524115834,1474.82292682,0.00018427,2]
[320706299,1711524120303,169.83745372,0.00018427,2]
[320706300,1711524122490,155.47290894,0.0002,2]
[320706301,1711524160877,780.32935963,0.00018427,2]
[320706302,1711524206813,155.14349743,0.0002,2]
[320706303,1711524217570,441.01478668,0.0002,2]
[320706304,1711524233540,215.12744239,0.0002,2]
[320706305,1711524325997,947.72553091,0.0002,2]
[320706307,1711524446143,-4178.44840539,0.0002487,2]
[320706308,1711524446163,-155.0,0.0002487,2]
[320706309,1711524446182,-301.76019222,0.0002487,2]
[320706310,1711524446203,-46.58471815,0.00024871,2]
[320706311,1711524453086,-763.08835726,0.00024869,2]
[320706312,1711524453106,-291.20613093,0.00024869,2]
[320706335,1711524631723,-351.10664586,0.00024855,2]
[320706337,1711524631735,-354.07335055,0.00024855,2]
[320706339,1711524631745,-155.0,0.00024855,2]
[320706341,1711524631755,-34.94664945,0.00024856,2]
[320706343,1711524631767,-326.15556417,0.00024856,2]
[320706345,1711524631777,-341.32563928,0.00024857,2]
[320706347,1711524631786,-150.0,0.00024857,2]
[320706349,1711524631796,-3363.69415921,0.00024857,2]
[320706351,1711524631805,-201.17184422,0.00024858,2]
[320706353,1711524631815,-258.29929323,0.00024858,2]
[320706355,1711524631826,-10557.61748168,0.00024858,2]
[320706357,1711524631836,-260.7652174,0.00024858,2]
[320706359,1711524631846,-716.0,0.00024858,2]
[320706361,1711524631856,-2138.31720221,0.00024859,2]
[320706363,1711524631870,-155.0,0.00024859,2]
[320706365,1711524631880,-1229.89580305,0.00024859,2]
[320706367,1711524631889,-205.59226142,0.00024859,2]
[320706369,1711524631898,-22812.59477854,0.0002486,2]
[320706371,1711524631911,-307.211855,0.0002486,2]
[320706377,1711524631955,-99.47494482,0.0002486,2]
[320706379,1711524631966,-618.37786763,0.00024871,2]
[320706381,1711524631975,-1368.30393197,0.00024874,2]
[320706383,1711524631987,-4033.655,0.00024874,2]
[320706384,1711524631998,-323.0436316,0.00024874,2]
[320706385,1711524632014,-219.90354547,0.00024874,2]
[320706386,1711524632024,-168.26556355,0.00024875,2]
[320706387,1711524632034,-3005.669,0.00024875,2]
[320706388,1711524632043,-106.11189098,0.00024875,2]
[320706389,1711524632055,-44.87810902,0.00024875,2]
[320706390,1711524632065,-234.69169098,0.00024999,2]
[320706391,1711524632078,-360.5371884,0.00024999,2]
[320706392,1711524632087,-350.0,0.00025,3]
[320706393,1711524632097,-400.0,0.00027,3]
[320706394,1711524632107,-450.0,0.00029,3]
[320706395,1711524632116,-168.26556353,0.00029217,2]
[320706396,1711524632127,-148.07150337,0.00029563,2]
[320706397,1711524632139,-5052.94939663,0.00029563,2]
[320706398,1711524632148,-397.39647589,0.00029657,2]
[320706399,1711524632158,-1502.04932574,0.0003,5]
[320706400,1711524632183,-255.97559429,0.0003,5]
[320706401,1711524632212,-240.05445579,0.0003,5]
[320706402,1711524632221,-200.0,0.0003034,2]
[320706404,1711524632232,-200.0,0.00030446,2]
[320706406,1711524632242,-27.88281693,0.00030446,2]
[320706409,1711524632254,-222.11718307,0.00030446,2]
[320706411,1711524632263,-387.74626355,0.0003061,2]
[320706413,1711524632275,-112.25373645,0.0003061,2]
[320706415,1711524632284,-154.99,0.00030636,2]
[320706417,1711524632294,-768.71445747,0.00030651,2]
[320706419,1711524632305,-3534.709289,0.00030651,2]
[320706421,1711524632317,-1008.9263289,0.00030651,2]
[320706424,1711524632329,-615.25441392,0.00030651,2]
[320706429,1711524637672,-1540.57199321,0.00030651,2]
[320706430,1711524637729,-2531.8235175,0.00030651,2]
[320706431,1711524637738,-62.08391452,0.00030673,2]
[320706432,1711524637790,-334.49608548,0.00030673,2]
[320706433,1711524637799,-396.58,0.00030757,2]
[320706434,1711524637809,-396.58,0.00030841,2]
[320706435,1711524637820,-396.58,0.00030925,2]
[320706436,1711524637830,-396.58,0.00031009,2]